bitfinex/quotes_ETHUSD_20250903
["timestamp","ask_amount","ask_price","bid_price","bid_amount"]
[1756916919648,16.65259262,4467.7,4467.6,0.001]
[1756916920006,20.46359262,4467.7,4467.6,0.3109]
[1756916920231,6.04928815,4467.7,4467.6,0.3109]
[1756916920632,9.04928815,4467.7,4467.6,0.3109]
[1756916921212,9.04928815,4467.7,4467.6,1.2641]
[1756916921213,3.0,4467.7,4467.6,1.2641]
[1756916921419,3.112,4467.7,4467.6,1.2641]
[1756916922121,5.35028815,4467.7,4467.6,1.2641]
[1756916922446,0.112,4467.7,4467.6,1.2641]
[1756916924919,2.2381444,4468.0,4467.6,1.2641]
[1756916925119,0.112,4467.9,4467.7,0.9532]
[1756916925437,0.112,4467.9,4467.8,1.2631]
[1756916925637,0.002,4468.2,4467.8,1.2631]
[1756916925816,0.112,4468.1,4467.9,0.9532]
[1756916926019,0.112,4468.1,4467.8,0.3099]
[1756916926020,0.002,4468.2,4468.0,1.2631]
[1756916926441,0.002,4468.2,4468.1,0.9532]
[1756916926855,0.002,4468.2,4468.1,1.2631]
[1756916930563,2.24003768,4468.2,4468.1,0.3099]
[1756916931160,2.35203768,4468.2,4468.1,0.3099]
[1756916931376,0.114,4468.2,4468.1,0.3099]
[1756916931669,0.114,4468.2,4468.1,0.3109]
[1756916932046,2.35203768,4468.2,4468.1,0.3109]
[1756916932245,0.114,4468.2,4468.1,0.3109]
[1756916933150,0.114,4468.2,4468.1,0.7768]
[1756916933674,2.64223768,4468.2,4468.1,0.001]
[1756916933846,2.35203768,4468.2,4468.1,0.3109]
[1756916934046,0.114,4468.2,4468.1,0.3109]
[1756916934754,9.61971768,4468.2,4468.1,0.001]
[1756916935980,7.09148,4468.2,4468.1,0.3109]
[1756916937180,9.32951768,4468.2,4468.1,0.3109]
[1756916937348,7.09148,4468.2,4468.1,0.3109]
[1756916938688,7.09148,4468.2,4468.1,1.2641]
[1756916939068,2.64223768,4468.2,4468.1,0.001]
[1756916939585,9.54120189,4468.2,4468.1,0.001]
[1756916939782,7.01296421,4468.2,4468.1,0.001]
[1756916940164,0.002,4468.2,4468.1,1.2033]
[1756916940686,2.55143768,4468.2,4468.1,0.001]
[1756916942655,6.76076021,4468.2,4468.1,0.001]
[1756916942890,6.76076021,4468.2,4467.6,0.001]
[1756916942891,2.23828815,4467.7,4467.6,0.001]
[1756916943057,15.94325236,4467.7,4467.6,0.001]
[1756916943394,17.25235236,4467.7,4467.6,0.001]
[1756916945300,17.93235236,4467.7,4467.6,0.001]
[1756916945488,2.23868902,4466.9,4466.8,0.025]
[1756916945794,15.94865323,4466.9,4466.8,0.025]
[1756916945999,12.13765323,4466.9,4466.8,0.3307]
[1756916946200,3.0,4466.9,4466.8,1.2273]
[1756916946399,5.23868902,4466.9,4466.8,1.2273]
[1756916947490,3.0,4466.9,4466.8,1.2273]
[1756916947789,5.23868902,4466.9,4466.8,1.2273]
[1756916948591,5.23868902,4466.9,4466.8,1.2283]
[1756916949934,3.0,4466.9,4466.8,0.7767]
[1756916950111,3.0,4467.1,4466.8,1.2283]
[1756916950413,2.23868902,4466.9,4466.8,0.3317]
[1756916950706,2.23868902,4466.9,4466.8,0.026]
[1756916950910,2.55008902,4466.9,4466.8,0.026]
[1756916951424,3.43578902,4466.9,4466.8,0.026]
[1756916951927,10.24378902,4466.9,4466.8,0.026]
[1756916952425,11.03578902,4466.9,4466.8,0.026]
[1756916954803,12.13785372,4466.5,4466.4,0.13]
[1756916955014,15.94485372,4466.5,4466.4,0.13]
[1756916955218,16.25625372,4466.5,4466.4,0.13]
[1756916955413,16.49825372,4466.5,4466.4,0.13]
[1756916955616,16.94965372,4466.5,4466.4,0.13]
[1756916956030,16.49825372,4466.5,4466.4,0.13]
[1756916956498,16.93255372,4466.5,4466.4,0.13]
[1756916958241,16.18685372,4466.5,4466.4,0.13]
[1756916958808,16.49825372,4466.5,4466.4,0.13]
[1756916960810,16.18685372,4466.5,4466.4,0.13]
[1756916961739,16.49825372,4466.5,4466.4,0.13]
[1756916962049,23.47573372,4466.5,4466.4,0.13]
[1756916962557,0.792,4465.0,4463.7,0.4516]
[1756916962757,0.792,4465.0,4462.8,0.025]
[1756916962758,6.89896421,4464.8,4464.1,0.445]
[1756916963052,3.0,4464.8,4464.2,0.4516]
[1756916963218,3.0,4464.8,4464.7,0.3057]
[1756916963418,5.23974198,4464.8,4464.7,0.3057]
[1756916963615,5.23974198,4464.8,4464.3,0.8966]
[1756916963616,2.23994265,4464.4,4464.3,0.8966]
[1756916963814,6.89896421,4464.9,4464.3,0.8966]
[1756916963815,6.89896421,4464.5,4464.3,0.8966]
[1756916964041,6.89896421,4464.5,4464.3,1.2023]
[1756916964625,7.57254859,4464.5,4464.3,1.2023]
[1756916965651,7.57254859,4464.5,4464.3,0.3057]
[1756916966023,7.57254859,4464.5,4464.3,1.2023]
[1756916966251,7.57254859,4464.5,4463.9,2.167]
[1756916966423,9.81245845,4464.5,4463.9,2.167]
[1756916966623,7.57254859,4464.5,4463.9,2.167]
[1756916966832,7.57254859,4464.5,4464.4,0.3057]
[1756916967131,7.57254859,4464.5,4464.4,1.2023]
[1756916967533,13.75796421,4464.9,4464.4,1.2023]
[1756916967730,0.67353296,4464.8,4464.5,0.8966]
[1756916968054,0.67353296,4464.8,4464.7,0.3057]
[1756916968257,0.67353296,4464.8,4464.7,1.2023]
[1756916968765,2.23974198,4464.8,4464.7,0.3057]
[1756916968965,2.23990241,4464.5,4464.1,0.4516]
[1756916969264,9.13886662,4464.5,4464.4,0.3057]
[1756916969630,9.13886662,4464.5,4464.4,1.2023]
[1756916970027,6.89896421,4464.5,4464.4,1.2023]
[1756916970434,0.67354355,4464.8,4464.4,1.2023]
[1756916970666,2.91333411,4464.8,4464.5,0.9049]
[1756916970880,12.99565593,4465.0,4464.7,0.3075]
[1756916971063,10.75596421,4465.0,4464.7,1.2124]
[1756916971234,2.54094198,4464.8,4463.9,2.1828]
[1756916971436,6.89896421,4464.3,4463.9,2.6269]
[1756916971654,6.89896421,4464.3,4464.2,0.3075]
[1756916971959,6.89896421,4464.3,4464.2,1.2124]
[1756916974347,6.89896421,4464.3,4464.2,0.7683]
[1756916975377,6.89896421,4464.3,4464.2,0.3075]
[1756916976856,0.112,4464.5,4464.2,0.7683]
[1756916977060,0.112,4464.5,4464.3,0.9049]
[1756916977463,0.112,4464.5,4464.0,2.24013643]
[1756916977464,0.112,4464.5,4464.4,1.2124]
[1756916977639,0.112,4464.5,4464.4,0.7683]
[1756916977845,0.112,4464.5,4464.4,0.3075]
[1756916978236,0.112,4464.5,4464.4,1.2124]
[1756916978441,5.75638217,4464.6,4464.4,1.2124]
[1756916978667,5.75638217,4464.6,4464.5,0.4441]
[1756916978868,5.75638217,4464.6,4464.5,1.2124]
[1756916979037,0.112,4464.7,4464.5,3.45229187]
[1756916979244,0.112,4464.7,4464.6,0.9049]
[1756916979638,5.75638217,4464.8,4464.6,1.2124]
[1756916979842,5.75638217,4464.8,4464.7,0.9049]
[1756916980042,5.75638217,4464.8,4464.7,0.7683]
[1756916980372,5.75638217,4464.8,4464.7,0.3075]
[1756916980674,6.61048217,4464.8,4464.1,3.846]
[1756916980844,6.61048217,4464.8,4463.9,1.834]
[1756916980845,5.75638217,4464.2,4463.9,1.834]
[1756916981178,5.75638217,4464.2,4464.1,0.3075]
[1756916981959,5.75638217,4464.3,4464.1,0.3075]
[1756916982160,5.75638217,4464.3,4464.2,0.9049]
[1756916982357,5.75638217,4464.3,4464.2,1.2124]
[1756916985076,5.75638217,4464.3,4464.2,0.7683]
[1756916985275,5.75638217,4464.3,4464.2,0.3075]
[1756916985898,12.77638217,4464.3,4464.2,0.3075]
[1756916986794,12.77638217,4464.3,4464.2,0.7516]
[1756916986966,12.77638217,4464.3,4464.2,0.3075]
[1756916988986,13.07758217,4464.3,4464.2,3.839]
[1756916989174,13.07758217,4464.3,4464.1,0.001]
[1756916989571,13.07758217,4464.3,4464.1,3.838]
[1756916989572,6.05758217,4464.3,4464.1,3.838]
[1756916989772,5.75638217,4464.3,4464.1,3.838]
[1756916990675,5.75638217,4464.3,4464.2,0.3075]
[1756916992089,5.75638217,4464.3,4464.2,1.2124]
[1756916993793,5.75638217,4464.9,4464.2,1.2124]
[1756916994104,5.86838217,4464.9,4464.3,3.25684845]
[1756916994286,5.86838217,4464.9,4464.4,6.07190165]
[1756916994496,5.86838217,4464.9,4464.8,0.3075]
[1756916995222,8.40927398,4464.9,4464.7,3.832]
[1756916997025,6.16958217,4464.9,4464.7,3.832]
[1756916997894,8.40928936,4464.9,4464.7,3.832]
[1756916998499,6.16958217,4464.9,4464.7,3.832]
[1756916998702,5.86838217,4464.9,4464.8,0.3075]
[1756916998912,5.86838217,4464.9,4464.7,3.832]
[1756916999233,5.86838217,4464.9,4464.8,0.3075]
[1756916999746,5.86838217,4464.9,4464.7,3.832]
[1756917000206,0.67348457,4465.2,4464.8,1.2419]
[1756917000410,0.002,4465.3,4464.8,1.2419]
[1756917000411,5.87038217,4465.3,4464.9,0.9435]
[1756917000616,5.87038217,4465.3,4465.2,0.2984]
[1756917001542,5.87038217,4465.3,4464.7,2.35178879]
[1756917001543,8.31228723,4465.3,4464.7,0.112]
[1756917001700,5.75638217,4464.8,4464.1,0.001]
[1756917001903,5.75638217,4464.4,4464.2,3.825]
[1756917002129,5.75638217,4464.4,4464.3,0.2984]
[1756917002434,5.75638217,4464.7,4464.5,2.23989248]
[1756917002598,0.4661,4465.4,4464.5,2.23989248]
[1756917002599,5.86838217,4465.1,4464.6,5.0679]
[1756917002799,5.75638217,4465.1,4464.7,3.18329068]
[1756917003049,0.114,4465.3,4464.8,2.23974198]
[1756917003197,0.002,4465.3,4465.2,0.2984]
[1756917003396,0.002,4465.3,4465.2,3.826]
[1756917003649,0.3164,4465.3,4465.2,3.826]
[1756917003850,0.002,4465.3,4465.2,6.85794134]
[1756917004011,0.002,4465.3,4465.2,7.41944134]
[1756917004342,0.002,4465.3,4465.2,5.1799]
[1756917004712,0.002,4465.3,4465.2,7.41944134]
[1756917004907,0.002,4465.3,4465.2,3.59344134]
[1756917005113,0.002,4465.3,4465.2,7.41944134]
[1756917005708,0.002,4465.3,4465.2,5.1799]
[1756917005928,0.002,4465.3,4465.2,1.3539]
[1756917006136,5.75838217,4465.3,4465.2,4.2364]
[1756917006741,5.75838217,4465.3,4465.2,6.47594134]
[1756917006742,0.002,4465.3,4465.2,6.47594134]
[1756917007149,0.002,4465.3,4465.2,4.2364]
[1756917007553,0.002,4465.3,4465.2,6.47594134]
[1756917007944,0.002,4465.3,4465.2,7.41944134]
[1756917009337,0.002,4465.3,4465.2,8.06300591]
[1756917009563,0.002,4465.3,4465.2,8.85500591]
[1756917009986,0.002,4465.3,4465.2,17.72338808]
[1756917012258,0.002,4465.3,4465.2,13.89738808]
[1756917012473,0.002,4465.3,4465.2,17.71838808]
[1756917013954,0.025,4465.8,4465.2,17.71838808]
[1756917013955,1e-08,4465.8,4465.7,11.78767276]
[1756917014154,1e-08,4465.8,4465.7,18.84537615]
[1756917014380,1e-08,4465.8,4465.7,20.08727615]
[1756917016071,1e-08,4465.8,4465.7,14.33089398]
[1756917016455,1e-08,4465.8,4465.7,10.50989398]
[1756917016651,1e-08,4465.8,4465.7,14.32689398]
[1756917017945,1e-08,4465.8,4465.7,8.77439398]
[1756917018176,0.31440001,4465.8,4465.7,5.47599398]
[1756917018376,0.78100001,4465.8,4465.7,7.89029059]
[1756917018580,1.24710001,4465.8,4465.7,4.07329059]
[1756917018776,1.24710001,4465.8,4465.7,7.89029059]
[1756917019191,1.24710001,4465.8,4465.7,7.88929059]
[1756917019962,1.24710001,4465.8,4465.7,4.07329059]
[1756917020165,1.24710001,4465.8,4465.7,7.88829059]
[1756917020570,0.31440001,4465.8,4465.7,7.88829059]
[1756917021470,0.78100001,4465.8,4465.7,4.07329059]
[1756917021688,7.00348218,4465.8,4465.7,1.834]
[1756917021890,7.00348218,4465.8,4465.7,5.648]
[1756917022202,7.00348218,4465.8,4465.7,5.536]
[1756917022663,0.78100001,4465.8,4465.7,7.77529059]
[1756917022994,0.31440001,4465.8,4465.7,8.89995758]
[1756917023202,1.24710001,4465.8,4465.7,7.88729059]
[1756917024488,0.78100001,4465.8,4465.7,7.88729059]
[1756917024788,0.00200001,4465.8,4465.7,7.88729059]
[1756917025654,0.00200001,4465.8,4465.7,8.56769059]
[1756917025883,0.00200001,4465.8,4465.7,9.12919059]
[1756917026090,0.00200001,4465.8,4465.7,10.26614784]
[1756917030197,0.00200001,4465.8,4465.7,5.50864784]
[1756917030402,0.30330001,4465.8,4465.7,9.02424784]
[1756917030603,0.74980001,4465.8,4465.7,9.02424784]
[1756917031882,0.30330001,4465.8,4465.7,9.02424784]
[1756917032107,1.24780001,4465.8,4465.7,1.834]
[1756917032264,1.24780001,4465.8,4465.7,5.535]
[1756917032463,1.24780001,4465.8,4465.6,0.001]
[1756917032702,6.36638217,4465.7,4465.6,0.001]
[1756917033002,8.60567276,4465.7,4465.6,0.001]
[1756917033204,9.35347276,4465.7,4465.6,0.001]
[1756917034371,12.35347276,4465.7,4465.6,0.001]
[1756917035605,25.92185493,4465.7,4465.6,0.001]
[1756917037571,21.31639821,4465.7,4465.6,0.001]
[1756917040206,13.61709059,4465.7,4465.6,0.001]
[1756917040376,24.22539821,4465.7,4465.6,0.001]
[1756917040573,19.57989821,4465.7,4465.6,0.001]
[1756917040774,23.39289821,4465.7,4465.6,0.001]
[1756917040973,18.15360762,4465.7,4465.6,0.001]
[1756917041374,11.2463,4465.7,4465.6,0.001]
[1756917041574,21.33739821,4465.7,4465.6,0.001]
[1756917042004,24.33739821,4465.7,4465.6,0.001]
[1756917043576,17.43009059,4465.7,4465.6,0.001]
[1756917043979,18.22209059,4465.7,4465.6,0.001]
[1756917045504,12.67259059,4465.7,4465.6,0.001]
[1756917045679,16.18429059,4465.7,4465.6,0.001]
[1756917045876,12.37129059,4465.7,4465.6,0.001]
[1756917046102,13.945,4465.7,4465.6,0.3117]
[1756917046304,11.2463,4465.7,4465.6,0.001]
[1756917046482,13.48559059,4465.7,4465.6,0.001]
[1756917047414,10.945,4465.7,4465.6,0.001]
[1756917047791,13.18429059,4465.7,4465.6,0.001]
[1756917048009,13.48559059,4465.7,4465.6,0.001]
[1756917048511,10.945,4465.7,4465.6,0.001]
[1756917048810,13.98359059,4465.7,4465.6,0.001]
[1756917049011,14.43009059,4465.7,4465.6,0.001]
[1756917049179,17.43009059,4465.7,4465.6,0.001]
[1756917049383,16.48559059,4465.7,4465.6,0.001]
[1756917051835,12.37129059,4465.7,4465.6,0.3117]
[1756917051981,13.945,4465.7,4465.6,0.7743]
[1756917052181,13.945,4465.7,4465.6,0.3117]
[1756917052407,7.132,4465.7,4465.6,0.7908]
[1756917052595,7.132,4465.7,4465.6,1.2534]
[1756917053324,0.00200001,4465.8,4465.6,1.2534]
[1756917053325,0.00200001,4465.8,4465.7,2.23929059]
[1756917053526,0.00200001,4465.8,4465.7,3.18099059]
[1756917053816,0.00200001,4465.8,4465.7,3.49169059]
[1756917054326,0.00200001,4465.8,4465.6,0.001]
[1756917054327,0.30330001,4465.8,4465.6,0.001]
[1756917054522,2.35129059,4465.7,4465.6,0.001]
[1756917055124,2.65259059,4465.7,4465.6,0.001]
[1756917055700,0.4133,4465.7,4465.6,0.001]
[1756917056308,2.65259059,4465.7,4465.6,0.001]
[1756917056534,0.4133,4465.7,4465.6,0.001]
[1756917056910,2.65259059,4465.7,4465.6,0.001]
[1756917057305,6.46559059,4465.7,4465.6,0.001]
[1756917057530,6.91209059,4465.7,4465.6,0.001]
[1756917058221,6.46559059,4465.7,4465.6,0.001]
[1756917059735,6.91209059,4465.7,4465.6,0.001]
[1756917060235,4.2263,4465.7,4465.6,0.001]
[1756917060541,4.2263,4465.7,4465.6,0.2897]
[1756917060542,0.112,4465.7,4465.6,0.2897]
[1756917060911,2.64429059,4465.7,4465.6,0.001]
[1756917061231,3.08509059,4465.7,4465.6,0.001]
[1756917061634,2.64429059,4465.7,4465.6,0.001]
[1756917063044,12.66429059,4465.7,4465.6,0.001]
[1756917063417,13.10509059,4465.7,4465.6,0.001]
[1756917065237,12.99309059,4465.7,4465.6,0.001]
[1756917065443,19.89958129,4465.7,4465.6,0.001]
[1756917066152,22.97878129,4465.7,4465.6,0.2897]
[1756917067032,22.97878129,4465.7,4465.6,0.001]
[1756917067233,16.07229059,4465.7,4465.6,0.2897]
[1756917067437,13.833,4465.7,4465.6,1.2153]
[1756917067646,10.02,4465.7,4465.6,1.2153]
[1756917067945,3.0,4465.7,4465.6,1.2153]
[1756917068923,0.6753969,4465.8,4465.6,1.2153]
[1756917069130,0.00200001,4465.8,4465.7,0.9256]
[1756917069329,0.00200001,4465.8,4465.7,1.2143]
[1756917069927,0.00200001,4465.8,4465.7,0.12153]
[1756917070190,0.00200001,4465.8,4465.6,0.001]
[1756917070191,1.75800001,4465.8,4465.6,0.001]
[1756917070471,2.23929059,4465.7,4465.6,0.001]
[1756917070762,6.47217978,4465.7,4465.6,0.001]
[1756917070963,5.85457978,4465.7,4465.6,0.001]
[1756917071159,13.20187048,4465.7,4465.6,0.001]
[1756917071520,13.67167048,4465.7,4465.6,0.001]
[1756917072515,13.20187048,4465.7,4465.6,0.001]
[1756917073019,12.43878129,4465.7,4465.6,0.001]
[1756917073447,5.53229059,4465.7,4465.6,0.001]
[1756917074031,9.34429059,4465.7,4465.6,0.001]
[1756917074232,9.78509059,4465.7,4465.6,0.001]
[1756917074634,9.34429059,4465.7,4465.6,0.001]
[1756917074836,9.05129059,4465.7,4465.6,0.001]
[1756917075046,9.45629059,4465.7,4465.6,0.001]
[1756917075240,5.35129059,4465.7,4465.6,0.001]
[1756917075436,9.16329059,4465.7,4465.6,0.001]
[1756917075834,3.112,4465.7,4465.6,0.2897]
[1756917076036,9.16329059,4465.7,4465.6,0.7473]
[1756917076346,9.16329059,4465.7,4465.6,0.001]
[1756917076347,9.45629059,4465.7,4465.6,0.001]
[1756917077055,9.16329059,4465.7,4465.6,0.001]
[1756917077255,6.924,4465.7,4465.6,0.7473]
[1756917077556,9.45629059,4465.7,4465.6,0.001]
[1756917077729,6.16329059,4465.7,4465.6,0.001]
[1756917078058,3.924,4465.7,4465.6,0.2897]
[1756917078248,0.112,4465.7,4465.6,0.7473]
[1756917078451,3.924,4465.7,4465.6,1.2153]
[1756917078827,0.00200001,4465.8,4465.6,1.2153]
[1756917079034,0.00200001,4465.8,4465.7,1.04713]
[1756917079278,0.00200001,4465.8,4465.7,3.28642059]
[1756917079433,0.00200001,4465.8,4465.7,3.57512059]
[1756917083034,0.00200001,4465.8,4465.7,3.68712059]
[1756917083963,0.00200001,4465.8,4465.7,6.68712059]
[1756917086940,0.00200001,4465.8,4465.7,10.49812059]
[1756917089479,0.00200001,4465.8,4465.7,6.68712059]
[1756917089681,0.00200001,4465.8,4465.7,10.49812059]
[1756917091148,0.00200001,4465.8,4465.7,6.68712059]
[1756917091355,0.00200001,4465.8,4465.7,10.03012059]
[1756917091550,0.00200001,4465.8,4465.7,10.45882059]
[1756917092280,7.33070001,4465.8,4465.6,0.001]
[1756917092649,0.4722,4465.7,4465.6,0.001]
[1756917092868,7.33070001,4465.8,4465.6,0.001]
[1756917093067,0.3087,4465.7,4465.6,0.001]
[1756917093395,0.7809,4465.7,4465.6,0.001]
[1756917093906,7.02200001,4465.8,4465.6,2.55294073]
[1756917094109,7.02200001,4465.8,4465.7,3.13709059]
[1756917094265,7.02200001,4465.8,4465.7,3.02099059]
[1756917095199,7.02200001,4465.8,4465.7,3.44969059]
[1756917096192,7.02200001,4465.8,4465.7,6.44969059]
[1756917096565,0.00200001,4465.8,4465.7,6.44969059]
[1756917096793,0.00200001,4465.8,4465.7,7.94672512]
[1756917100506,0.00200001,4465.8,4465.7,11.75672512]
[1756917101599,0.00200001,4465.8,4465.7,7.94672512]
[1756917101903,0.00200001,4465.8,4465.7,4.04892512]
[1756917102096,0.00200001,4465.8,4465.7,6.04929059]
[1756917102097,0.31070001,4465.8,4465.7,6.04929059]
[1756917102297,1.26710001,4465.8,4465.7,6.04929059]
[1756917102493,1.26710001,4465.8,4465.6,1.835]
[1756917102700,0.9564,4465.7,4465.6,1.723]
[1756917102898,1.2651,4465.7,4465.6,5.533]
[1756917104808,0.3087,4465.7,4465.6,5.533]
[1756917105185,0.00200001,4465.8,4465.6,5.533]
[1756917105386,0.00200001,4465.8,4465.7,2.23929059]
[1756917106100,0.31070001,4465.8,4465.7,2.23929059]
[1756917106300,0.31070001,4465.8,4465.6,7.88432022]
[1756917106480,0.31070001,4465.8,4465.7,2.23929059]
[1756917107286,0.00200001,4465.8,4465.7,3.27178496]
[1756917107587,0.00200001,4465.8,4465.7,7.08178496]
[1756917107983,0.00200001,4465.8,4465.7,7.97958496]
[1756917110611,0.00200001,4465.8,4465.7,10.97958496]
[1756917115428,0.00200001,4465.8,4465.7,11.77158496]
[1756917115793,0.00200001,4465.8,4465.7,6.42828496]
[1756917115989,0.00200001,4465.8,4465.7,9.76818496]
[1756917116822,0.31070001,4465.8,4465.7,9.76818496]
[1756917117931,0.00200001,4465.8,4465.7,9.76818496]
[1756917119329,0.00200001,4465.8,4465.7,10.08078496]
[1756917119495,0.00200001,4465.8,4465.7,6.27178496]
[1756917119821,0.00200001,4465.8,4465.7,9.76818496]
[1756917121126,0.00200001,4465.8,4465.7,9.76718496]
[1756917121320,0.00200001,4465.8,4465.7,10.05298496]
[1756917122042,0.00200001,4465.8,4465.7,9.76718496]
[1756917122930,1.22220001,4465.8,4465.7,2.35129059]
[1756917123238,1.22220001,4465.8,4465.7,6.15929059]
[1756917124044,0.75050001,4465.8,4465.7,6.15929059]
[1756917124327,0.29740001,4465.8,4465.7,6.15929059]
[1756917125518,0.00200001,4465.8,4465.7,6.15929059]
[1756917126027,0.00200001,4465.8,4465.7,8.39375761]
[1756917127599,0.00200001,4465.8,4465.7,11.39375761]
[1756917128310,0.00200001,4465.8,4465.7,10.93685761]
[1756917129009,0.00200001,4465.8,4465.7,11.39375761]
[1756917130231,0.29740001,4465.8,4465.7,7.17145761]
[1756917130633,0.75050001,4465.8,4465.7,7.17145761]
[1756917131214,0.29740001,4465.8,4465.7,7.17145761]
[1756917132425,0.00200001,4465.8,4465.7,3.64925761]
[1756917132624,0.00200001,4465.8,4465.7,8.39375761]
[1756917133135,0.00200001,4465.8,4465.7,11.39375761]
[1756917133837,0.00200001,4465.8,4465.7,12.18575761]
[1756917134051,0.00200001,4465.8,4465.7,12.07375761]
[1756917134246,0.00200001,4465.8,4465.7,12.18575761]
[1756917134413,0.002,4466.7,4466.6,2.23883938]
[1756917134738,0.002,4466.7,4466.6,8.21561429]
[1756917134903,0.002,4466.7,4466.6,12.43791429]
[1756917135109,0.002,4466.7,4466.6,12.54991429]
[1756917135705,0.002,4466.7,4466.6,11.61341429]
[1756917136311,0.002,4466.7,4466.6,7.80641429]
[1756917136511,0.002,4466.7,4466.6,11.61341429]
[1756917139739,0.2974,4466.7,4466.6,8.32761429]
[1756917140432,0.002,4466.7,4466.6,8.61341429]
[1756917141232,0.002,4466.7,4466.6,8.32761429]
[1756917141425,0.2974,4466.7,4466.6,4.52061429]
[1756917141624,0.2974,4466.7,4466.6,8.32661429]
[1756917141842,0.002,4466.7,4466.6,8.32661429]
[1756917142045,0.002,4466.7,4466.6,4.80641429]
[1756917142236,0.002,4466.7,4466.6,8.61241429]
[1756917142434,0.002,4466.7,4466.6,4.52061429]
[1756917142633,0.002,4466.7,4466.6,8.32661429]
[1756917142833,0.2974,4466.7,4466.6,4.52061429]
[1756917143042,0.002,4466.7,4466.6,8.32661429]
[1756917143450,0.2974,4466.7,4466.6,8.32661429]
[1756917143849,0.002,4466.7,4466.6,8.32661429]
[1756917144061,0.002,4466.7,4466.6,8.61241429]
[1756917145721,0.002,4466.7,4466.6,9.09201429]
[1756917145946,0.002,4466.7,4466.6,9.54891429]
[1756917146727,0.002,4466.7,4466.6,9.09201429]
[1756917146951,0.002,4466.7,4466.6,9.54891429]
[1756917147154,0.002,4466.7,4466.6,4.52061429]
[1756917147342,0.002,4466.7,4466.6,8.32661429]
[1756917147958,0.002,4466.7,4466.6,8.61241429]
[1756917149229,0.002,4466.7,4466.6,8.61141429]
[1756917149429,0.002,4466.7,4466.6,4.80641429]
[1756917149632,0.002,4466.7,4466.6,8.32561429]
[1756917150238,0.002,4466.7,4466.6,8.62031429]
[1756917152052,0.002,4466.7,4466.6,9.11891429]
[1756917152362,0.3177,4466.7,4466.6,8.32561429]
[1756917152551,0.002,4466.7,4466.6,8.32561429]
[1756917152931,0.002,4466.7,4466.6,8.62031429]
[1756917153133,0.002,4466.7,4466.6,9.11891429]
[1756917153328,0.002,4466.7,4466.6,9.57801429]
[1756917153765,0.002,4466.7,4466.6,12.91091429]
[1756917153970,1e-08,4466.8,4466.7,6.03078926]
[1756917154260,1e-08,4466.8,4466.7,15.00441008]
[1756917154473,1e-08,4466.8,4466.7,15.29911008]
[1756917154841,1e-08,4466.8,4466.7,19.10411008]
[1756917155055,1e-08,4466.8,4466.7,7.80139723]
[1756917155238,1e-08,4466.8,4466.7,9.04378926]
[1756917155439,1e-08,4466.8,4466.7,9.79758926]
[1756917155640,1e-08,4466.8,4466.7,10.58958926]
[1756917155840,1e-08,4466.8,4466.7,11.08818926]
[1756917156041,1e-08,4466.8,4466.7,9.45048926]
[1756917156244,1e-08,4466.8,4466.7,11.63509187]
[1756917156441,1e-08,4466.8,4466.7,11.34039187]
[1756917156643,0.31570001,4466.8,4466.7,7.53539187]
[1756917156852,0.31570001,4466.8,4466.7,11.33939187]
[1756917157571,0.31570001,4466.8,4466.7,2.29660261]
[1756917157789,7.02721286,4466.8,4466.3,0.001]
[1756917157956,7.02721286,4466.8,4466.4,3.804]
[1756917157957,1.27920001,4466.8,4466.4,3.804]
[1756917158276,0.9635,4466.7,4466.4,3.804]
[1756917158572,0.3157,4466.5,4466.4,3.804]
[1756917158941,0.7841,4466.5,4466.4,3.804]
[1756917159136,0.7841,4466.5,4466.4,6.04293963]
[1756917159342,1.2792,4466.5,4466.4,3.804]
[1756917159569,1.2792,4466.5,4466.4,6.04293963]
[1756917159875,1.2792,4466.5,4466.3,0.001]
[1756917160092,2.2391903,4465.9,4465.8,0.026]
[1756917160395,2.23927448,4465.8,4465.6,0.001]
[1756917160560,0.3157,4465.7,4465.6,0.001]
[1756917160884,0.8108,4465.7,4465.6,0.001]
[1756917161189,1.2792,4465.7,4465.6,0.001]
[1756917164389,0.3157,4465.7,4465.6,0.001]
[1756917164579,0.4684,4466.4,4465.6,0.6763]
[1756917164777,0.4684,4466.4,4465.7,3.804]
[1756917164963,0.4951,4466.3,4465.7,3.804]
[1756917165166,0.3157,4465.8,4465.7,3.804]
[1756917165365,0.67326541,4466.5,4465.7,6.33799059]
[1756917165685,0.4684,4466.4,4465.7,3.804]
[1756917165856,0.3157,4465.8,4465.7,6.04329059]
[1756917166052,0.3157,4465.8,4465.6,2.24033308]
[1756917166286,0.8108,4465.8,4465.6,0.001]
[1756917166490,0.8108,4465.8,4465.7,3.804]
[1756917166693,0.3157,4465.8,4465.7,3.804]
[1756917166987,0.3157,4465.8,4465.6,2.240338]
[1756917167185,0.3157,4465.8,4465.7,3.804]
[1756917167854,0.7841,4465.8,4465.7,3.804]
[1756917168593,0.3157,4465.8,4465.7,6.04329059]
[1756917168755,0.112,4466.1,4465.9,2.23918607]
[1756917169107,0.112,4466.7,4466.0,4.0987]
[1756917169290,0.02500001,4466.8,4466.1,2.23909003]
[1756917169464,0.02500001,4466.8,4466.4,2.23892567]
[1756917169668,0.02500001,4466.8,4466.5,3.804]
[1756917170101,0.3157,4466.6,4466.5,3.804]
[1756917170260,0.7841,4466.6,4466.5,3.804]
[1756917170676,0.7841,4466.6,4466.3,0.112]
[1756917170872,0.4684,4466.5,4466.3,3.916]
[1756917171071,0.3157,4466.4,4466.3,3.916]
[1756917171278,0.02500001,4466.8,4466.3,6.15498976]
[1756917171477,0.3157,4466.4,4466.3,0.112]
[1756917171672,0.7841,4466.4,4466.3,6.15498976]
[1756917171877,0.7841,4466.4,4466.3,3.916]
[1756917172273,1.2792,4466.4,4466.3,3.916]